bitfinex-derivatives/quotes_BNBF0:USTF0_20250303
["timestamp","ask_amount","ask_price","bid_price","bid_amount"]
[1741011341196,5.89,604.69,604.29,1.23084485]
[1741011342997,5.89,604.69,604.18,0.33102717]
[1741011346408,5.89,604.69,603.95,1.23084485]
[1741011347610,5.89,604.69,603.9,1.23084485]
[1741011351612,5.89,604.69,604.06,1.23084485]
[1741011354013,5.89,604.69,604.15,1.23084485]
[1741011356011,5.89,604.69,604.11,1.23084485]
[1741011357513,5.89,604.69,604.18,1.23084485]
[1741011359414,5.89,604.69,603.81,1.23084485]
[1741011361120,5.89,604.69,603.82,1.23084485]
[1741011363624,5.89,604.69,603.8,1.23084485]
[1741011363818,1.28321463,604.68,603.8,1.23084485]
[1741011364818,1.28321463,604.67,603.8,1.23084485]
[1741011365926,1.28321463,604.66,603.91,1.23084485]
[1741011366526,1.28321463,604.65,603.91,1.23084485]
[1741011367321,4.28321463,604.64,603.91,1.23084485]
[1741011367523,4.28321463,604.64,603.92,0.33116969]
[1741011367926,5.06389468,604.63,603.92,0.33116969]
[1741011368524,3.33630454,604.62,603.92,0.33116969]
[1741011369123,1.28321463,604.61,603.92,0.33116969]
[1741011369926,1.28321463,604.6,603.92,0.33116969]
[1741011370628,1.28321463,604.59,603.92,0.33116969]
[1741011371429,1.28321463,604.58,603.92,0.33116969]
[1741011372022,1.28321463,604.57,603.92,0.33116969]
[1741011372429,1.72760444,604.6,603.92,0.33116969]
[1741011372430,1.28321463,604.56,603.92,0.33116969]
[1741011373027,1.28321463,604.56,603.97,1.23084485]
[1741011373223,1.28321463,604.55,603.97,1.23084485]
[1741011374029,1.28321463,604.54,603.97,1.23084485]
[1741011374424,1.28321463,604.53,603.97,1.23084485]
[1741011375029,1.28321463,604.53,603.92,0.33116969]
[1741011375229,1.28321463,604.52,603.92,0.33116969]
[1741011376126,1.28321463,604.51,603.92,0.33116969]
[1741011376832,6.29245215,604.5,603.92,0.33116969]
[1741011377432,1.28321463,604.49,603.92,0.33116969]
[1741011378534,3.32701255,604.48,603.92,0.33116969]
[1741011379128,3.32701255,604.47,603.92,0.33116969]
[1741011379529,3.32701255,604.46,603.92,0.33116969]
[1741011380137,1.235,604.5,603.92,0.33116969]
[1741011380430,1.563,604.45,603.92,0.33116969]
[1741011385831,1.2754271,604.44,603.92,0.33116969]
[1741011386637,3.31557335,604.43,603.92,0.33116969]
[1741011387432,1.2754271,604.42,603.92,0.33116969]
[1741011387834,3.31540881,604.41,603.92,0.33116969]
[1741011388636,3.31540881,604.4,603.92,0.33116969]
[1741011388832,5.0439214,604.4,603.92,0.33116969]
[1741011389237,3.97728138,604.39,603.92,0.33116969]
[1741011389633,3.97728138,604.38,603.92,0.33116969]
[1741011390039,3.97728138,604.37,603.92,0.33116969]
[1741011390741,3.31540881,604.36,603.92,0.33116969]
[1741011391134,3.97728466,604.35,603.92,0.33116969]
[1741011391841,5.04399295,604.34,603.92,0.33116969]
[1741011392239,3.31540881,604.33,603.92,0.33116969]
[1741011392435,3.31540881,604.33,603.33,1.23084485]
[1741011392741,3.31540881,604.33,603.35,0.33148255]
[1741011392941,3.31540881,604.32,603.35,0.33148255]
[1741011393537,3.97735796,604.31,603.35,0.33148255]
[1741011393942,5.35635796,604.3,603.35,0.33148255]
[1741011394642,5.61598298,604.29,603.35,0.33148255]
[1741011394848,7.34501802,604.29,603.35,0.33148255]
[1741011395240,1.63862502,604.26,603.35,0.33148255]
[1741011395744,1.63862502,604.21,603.35,0.33148255]
[1741011395946,1.852,604.2,603.35,0.33148255]
[1741011396540,3.97735796,604.19,603.35,0.33148255]
[1741011397240,3.97735796,604.18,603.35,0.33148255]
[1741011397849,1.72924267,604.17,603.35,0.33148255]
[1741011398052,5.70660063,604.17,603.35,0.33148255]
[1741011398851,3.31540881,604.16,603.35,0.33148255]
[1741011399547,3.31540881,604.15,603.35,0.33148255]
[1741011399955,1.2754271,604.14,603.35,0.33148255]
[1741011400854,1.2754271,604.13,603.35,0.33148255]
[1741011402149,1.2754271,604.12,603.35,0.33148255]
[1741011402956,1.2754271,604.11,603.35,0.33148255]
[1741011403557,3.30683484,604.1,603.35,0.33148255]
[1741011404358,3.96891465,604.09,603.35,0.33148255]
[1741011404856,3.96891465,604.08,603.35,0.33148255]
[1741011405352,2.69348755,604.07,603.35,0.33148255]
[1741011405557,3.96891465,604.07,603.35,0.33148255]
[1741011405954,1.72936441,604.14,603.35,0.33148255]
[1741011405955,3.96891465,604.06,603.35,0.33148255]
[1741011406755,3.96891465,604.05,603.35,0.33148255]
[1741011406951,5.69850826,604.05,603.35,0.33148255]
[1741011407149,3.96891465,604.04,603.35,0.33148255]
[1741011408158,3.96891465,604.03,603.35,0.33148255]
[1741011408759,3.96891465,604.02,603.35,0.33148255]
[1741011409358,3.96891465,604.01,603.35,0.33148255]
[1741011409855,1.852,604.2,603.35,0.33148255]
[1741011409856,3.96891465,604.0,603.35,0.33148255]
[1741011410854,3.96891465,603.99,603.35,0.33148255]
[1741011411660,3.30683484,603.98,603.35,0.33148255]
[1741011412555,3.30683484,603.97,603.35,0.33148255]
[1741011413352,1.2754271,603.96,603.35,0.33148255]
[1741011414260,1.72957928,604.09,603.35,0.33148255]
[1741011414261,1.2754271,603.95,603.35,0.33148255]
[1741011414955,1.2754271,603.94,603.35,0.33148255]
[1741011415756,3.30321658,603.93,603.35,0.33148255]
[1741011416158,3.30321658,603.92,603.35,0.33148255]
[1741011417468,1.2754271,603.91,603.35,0.33148255]
[1741011417666,3.1094271,603.91,603.35,0.33148255]
[1741011418565,1.2754271,603.9,603.35,0.33148255]
[1741011419267,1.2754271,603.89,603.35,0.33148255]
[1741011419867,1.834,603.91,603.35,0.33148255]
[1741011427577,1.711,603.9,603.35,0.33148255]
[1741011427979,1.2699047,603.89,603.35,0.33148255]
[1741011429179,3.30137059,603.88,603.35,0.33148255]
[1741011429678,3.96379534,603.87,603.35,0.33148255]
[1741011430679,3.96379534,603.86,603.35,0.33148255]
[1741011430875,5.69371137,603.86,603.35,0.33148255]
[1741011431279,3.96379534,603.85,603.35,0.33148255]
[1741011431781,3.96379534,603.84,603.35,0.33148255]
[1741011432480,3.30137059,603.83,603.35,0.33148255]
[1741011433079,3.30137059,603.82,603.35,0.33148255]
[1741011433780,3.30137059,603.82,602.92,1.23084485]
[1741011433976,3.96383875,603.81,602.93,0.33171346]
[1741011434582,1.576,603.8,602.93,0.33171346]
[1741011434780,5.53983875,603.8,602.93,0.33171346]
[1741011435182,3.30137059,603.79,602.93,0.33171346]
[1741011436076,1.576,603.8,602.93,0.33171346]
[1741011436077,3.30137059,603.78,602.93,0.33171346]
[1741011436478,3.96399604,603.77,602.93,0.33171346]
[1741011436880,5.69471506,603.77,602.93,0.33171346]
[1741011437177,3.96399604,603.76,602.93,0.33171346]
[1741011438083,1.63862502,603.74,602.93,0.33171346]
[1741011438983,3.96399604,603.73,602.93,0.33171346]
[1741011439686,1.576,603.8,602.93,0.33171346]
[1741011439687,3.96399604,603.72,602.93,0.33171346]
[1741011439884,5.69480114,603.72,602.93,0.33171346]
[1741011440278,1.63862502,603.66,602.93,0.33171346]
[1741011441077,1.63862502,603.61,602.93,0.33171346]
[1741011441878,3.96399604,603.6,602.93,0.33171346]
[1741011442883,3.96399604,603.59,602.93,0.33171346]
[1741011443883,3.96399604,603.58,602.93,0.33171346]
[1741011444483,3.96399604,603.57,602.93,0.33171346]
[1741011445085,3.30137059,603.56,602.93,0.33171346]
[1741011445476,3.30137059,603.55,602.93,0.33171346]
[1741011446179,3.30137059,603.54,602.93,0.33171346]
[1741011446983,3.30137059,603.53,602.93,0.33171346]
[1741011447585,3.30137059,603.52,602.93,0.33171346]
[1741011448086,3.30137059,603.51,602.93,0.33171346]
[1741011448886,1.2699047,603.5,602.93,0.33171346]
[1741011449482,0.66253162,603.7,602.93,0.33171346]
[1741011449682,1.73086966,603.71,602.93,0.33171346]
[1741011450182,3.29983607,603.7,602.93,0.33171346]
[1741011450690,3.29983607,603.69,602.93,0.33171346]
[1741011451086,4.47083607,603.69,602.93,0.33171346]
[1741011451286,3.29983607,603.68,602.93,0.33171346]
[1741011452188,3.29983607,603.67,602.93,0.33171346]
[1741011453388,3.29983607,603.66,602.93,0.33171346]
[1741011453793,1.26916772,603.65,602.93,0.33171346]
[1741011454588,1.26916772,603.64,602.93,0.33171346]
[1741011454989,1.26916772,603.63,602.93,0.33171346]
[1741011455688,1.26916772,603.62,602.93,0.33171346]
[1741011456686,3.30195624,603.61,602.93,0.33171346]
[1741011457294,3.30195624,603.6,602.93,0.33171346]
[1741011457796,1.26916772,603.59,602.93,0.33171346]
[1741011457994,1.641,603.58,602.93,0.33171346]
[1741011458695,1.26916772,603.57,602.93,0.33171346]
[1741011459197,1.26916772,603.56,602.93,0.33171346]
[1741011459695,1.641,603.58,602.93,0.33171346]
[1741011460397,1.27111571,603.57,602.93,0.33171346]
[1741011461294,1.27111571,603.56,602.93,0.33171346]
[1741011462398,1.27111571,603.55,602.93,0.33171346]
[1741011463300,1.641,603.58,602.93,0.33171346]
[1741011464002,3.834,603.58,602.93,0.33171346]
[1741011464903,3.834,603.58,602.52,1.23084485]
[1741011473206,5.71,603.58,602.52,1.23084485]
[1741011474705,5.71,603.58,603.04,1.23084485]
[1741011475606,5.71,603.58,602.78,1.55551361]
[1741011477911,5.71,603.58,602.64,2.49160946]
[1741011479410,5.71,603.58,602.67,2.49160946]
[1741011481013,5.71,603.58,602.7,2.49160946]
[1741011483015,5.71,603.58,602.75,2.49160946]
[1741011484822,5.71,603.58,601.73,3.58556663]
[1741011484823,5.71,603.58,602.49,2.49160946]
[1741011486723,5.71,603.58,602.52,2.49160946]
[1741011488223,5.71,603.58,602.88,2.49160946]
[1741011489823,5.71,603.58,602.71,2.49160946]
[1741011493219,5.71,603.58,602.72,0.33182904]
[1741011493422,1.27844251,603.57,602.72,0.33182904]
[1741011494122,1.27844251,603.56,602.72,0.33182904]
[1741011494717,1.27844251,603.55,602.72,0.33182904]
[1741011495625,1.27844251,603.54,602.72,0.33182904]
[1741011496025,1.27844251,603.53,602.72,0.33182904]
[1741011497119,1.219,603.57,602.75,2.52629103]
[1741011497322,1.31,603.52,602.75,2.52629103]
[1741011497722,1.31,603.52,602.76,0.33180702]
[1741011499329,1.378,603.51,602.76,0.33180702]
[1741011501728,1.27863434,603.5,602.76,0.33180702]
[1741011502121,1.378,603.51,602.76,0.33180702]
[1741011503327,2.209,603.5,602.76,0.33180702]
[1741011503527,3.48779811,603.5,602.76,0.33180702]
[1741011504122,2.209,603.5,602.76,0.33180702]
[1741011504525,1.27922257,603.49,602.76,0.33180702]
[1741011505627,1.27922257,603.48,602.76,0.33180702]
[1741011506127,1.27922257,603.47,602.76,0.33180702]
[1741011506722,1.27922257,603.46,602.76,0.33180702]
[1741011507430,1.27922257,603.45,602.76,0.33180702]
[1741011508125,1.27922257,603.44,602.76,0.33180702]
[1741011508830,1.27922257,603.43,602.76,0.33180702]
[1741011509224,1.27922257,603.42,602.76,0.33180702]
[1741011509632,1.27922257,603.41,602.76,0.33180702]
[1741011510225,1.27922257,603.4,602.76,0.33180702]
[1741011510930,3.32285315,603.39,602.76,0.33180702]
[1741011511528,1.27922257,603.39,602.76,0.33180702]
[1741011511831,2.93690398,603.38,602.76,0.33180702]
[1741011512032,1.65768141,603.37,602.76,0.33180702]
[1741011512734,3.98387885,603.36,602.76,0.33180702]
[1741011512935,1.65768141,603.35,602.76,0.33180702]
[1741011513127,3.98387885,603.36,602.76,0.33180702]
[1741011513531,3.98387885,603.34,602.76,0.33180702]
[1741011514036,3.98387885,603.35,602.76,0.33180702]
[1741011514635,3.98387885,603.34,602.76,0.33180702]
[1741011515035,5.71599771,603.34,602.76,0.33180702]
[1741011515238,3.98387885,603.33,602.76,0.33180702]
[1741011516140,3.98387885,603.32,602.76,0.33180702]
[1741011517143,5.62250387,603.31,602.76,0.33180702]
[1741011517540,3.98387885,603.3,602.76,0.33180702]
[1741011517743,1.65816126,603.29,602.76,0.33180702]
[1741011517943,3.98387885,603.3,602.76,0.33180702]
[1741011518139,1.63862502,603.27,602.76,0.33180702]
[1741011518341,3.29681128,603.27,602.76,0.33180702]
[1741011518543,1.63862502,603.27,602.76,0.33180702]
[1741011518939,5.62250387,603.26,602.76,0.33180702]
[1741011519138,1.65825868,603.25,602.76,0.33180702]
[1741011519338,1.63862502,603.22,602.76,0.33180702]
[1741011519645,1.65825868,603.21,602.76,0.33180702]
[1741011519842,1.65825868,603.2,602.76,0.33180702]
[1741011520040,1.63862502,603.2,602.76,0.33180702]
[1741011520746,1.63862502,603.15,602.76,0.33180702]
[1741011521346,3.98387885,603.14,602.76,0.33180702]
[1741011521647,3.98387885,603.13,602.76,0.33180702]
[1741011522438,3.98387885,603.12,602.76,0.33180702]
[1741011523447,3.98387885,603.11,602.76,0.33180702]
[1741011524046,3.98387885,603.1,602.76,0.33180702]
[1741011524645,3.98387885,603.09,602.76,0.33180702]
[1741011525147,3.98387885,603.08,602.76,0.33180702]
[1741011525645,3.98387885,603.07,602.76,0.33180702]
[1741011525852,3.98387885,603.07,601.21,1.48431585]
[1741011526051,3.98387885,603.07,601.23,0.33265139]
[1741011526450,3.98387885,603.06,601.23,0.33265139]
[1741011526852,3.98387885,603.05,601.23,0.33265139]
[1741011527046,3.98387885,603.04,601.23,0.33265139]
[1741011527748,3.98387885,603.03,601.23,0.33265139]
[1741011528046,3.98387885,603.02,601.23,0.33265139]
[1741011528551,3.3206507,603.01,601.23,0.33265139]
[1741011529350,1.27922257,603.0,601.23,0.33265139]
[1741011530254,1.27922257,602.99,601.23,0.33265139]
[1741011531254,1.27922257,602.98,601.23,0.33265139]
[1741011531751,1.27922257,602.97,601.23,0.33265139]
[1741011532652,1.27922257,602.96,601.23,0.33265139]
[1741011533446,1.64,602.95,601.23,0.33265139]
[1741011533749,1.27922257,602.94,601.23,0.33265139]
[1741011534153,1.27922257,602.93,601.23,0.33265139]
[1741011534653,1.27922257,602.92,601.23,0.33265139]
[1741011535254,1.27922257,602.91,601.23,0.33265139]
[1741011535555,1.64,602.95,601.23,0.33265139]
[1741011536255,1.26239445,602.94,601.23,0.33265139]
[1741011537159,1.26239445,602.93,601.36,1.48431585]
[1741011537357,1.26239445,602.93,601.38,0.33256842]
[1741011537856,1.26239445,602.92,601.38,0.33256842]
[1741011538360,1.64,602.95,601.38,0.33256842]
[1741011538551,1.64,602.95,601.43,1.48431585]
[1741011538755,1.64,602.95,601.45,0.33252971]
[1741011539157,1.26221247,602.94,601.45,0.33252971]
[1741011539752,3.94495917,602.93,601.45,0.33252971]
[1741011541157,3.28154328,602.92,601.45,0.33252971]
[1741011542059,3.28154328,602.91,601.45,0.33252971]
[1741011543061,3.94498684,602.9,601.45,0.33252971]
[1741011543859,1.73306773,602.94,601.45,0.33252971]
[1741011543860,3.94498684,602.89,601.45,0.33252971]
[1741011544960,3.28154328,602.88,601.45,0.33252971]
[1741011545557,1.26221247,602.87,601.45,0.33252971]
[1741011546058,1.26221247,602.87,601.61,1.48431585]
[1741011546252,1.26221247,602.86,601.63,0.33243023]
[1741011546457,2.52321247,602.86,601.63,0.33243023]
[1741011546852,1.26221247,602.85,601.63,0.33243023]
[1741011547257,1.261,602.86,601.63,0.33243023]
[1741011547258,1.26221247,602.84,601.63,0.33243023]
[1741011547657,1.261,602.86,601.82,1.48431585]
[1741011547857,1.261,602.86,601.84,0.33231423]
[1741011548359,1.26283822,602.85,601.84,0.33231423]
[1741011548759,3.28333035,602.84,601.84,0.33231423]
[1741011549157,3.94680858,602.83,601.84,0.33231423]
[1741011549956,3.94680858,602.82,601.84,0.33231423]
[1741011550658,3.94680858,602.81,601.84,0.33231423]
[1741011551062,1.25,602.8,601.84,0.33231423]
[1741011551259,5.19680858,602.8,601.84,0.33231423]
[1741011551965,3.28333035,602.79,601.84,0.33231423]
[1741011552658,3.28333035,602.78,601.84,0.33231423]
[1741011553262,3.94703647,602.77,601.84,0.33231423]
[1741011553465,1.65953284,602.76,601.84,0.33231423]
[1741011553663,1.65953284,602.75,601.84,0.33231423]
[1741011553859,1.65953284,602.74,601.84,0.33231423]
[1741011554064,1.65953284,602.73,601.84,0.33231423]
[1741011554264,1.65953284,602.72,601.84,0.33231423]
[1741011554465,1.65953284,602.71,601.84,0.33231423]
[1741011554661,3.94703647,602.72,601.84,0.33231423]
[1741011555458,3.94703647,602.71,601.84,0.33231423]
[1741011556065,1.25,602.8,601.84,0.33231423]
[1741011556066,3.94703647,602.7,601.84,0.33231423]
[1741011556465,3.94703647,602.69,601.84,0.33231423]
[1741011556965,5.62003647,602.69,601.84,0.33231423]
[1741011557366,5.60659861,602.68,601.84,0.33231423]
[1741011557567,3.94703647,602.68,601.84,0.33231423]
[1741011557759,3.94703647,602.67,601.84,0.33231423]
[1741011558362,3.94703647,602.66,601.84,0.33231423]
[1741011558767,3.94703647,602.65,601.84,0.33231423]
[1741011559367,3.94703647,602.64,601.84,0.33231423]
[1741011560469,3.94703647,602.63,601.84,0.33231423]
[1741011560961,3.94703647,602.62,601.84,0.33231423]
[1741011561364,5.68134937,602.62,601.84,0.33231423]
[1741011561770,3.94703647,602.61,601.84,0.33231423]
[1741011562167,3.28333035,602.6,601.84,0.33231423]
[1741011562471,3.94703647,602.6,601.84,0.33231423]
[1741011562866,3.94703647,602.59,601.84,0.33231423]
[1741011563568,3.28333035,602.58,601.84,0.33231423]
[1741011563769,4.67733035,602.58,601.84,0.33231423]
[1741011564272,3.28333035,602.57,601.84,0.33231423]
[1741011564971,1.26283822,602.56,601.84,0.33231423]
[1741011565569,1.26283822,602.55,601.84,0.33231423]
[1741011566373,1.394,602.58,601.84,0.33231423]
[1741011571771,2.779,602.58,601.84,0.33231423]
[1741011573268,4.347,602.58,601.84,0.33231423]
[1741011595300,6.132,602.58,601.84,0.33231423]
[1741011610916,3.96316953,602.57,601.84,0.33231423]
[1741011611520,3.29918282,602.56,601.84,0.33231423]
[1741011611719,3.29918282,602.56,600.82,1.48431585]
[1741011612114,3.96313565,602.55,600.82,1.48431585]
[1741011613016,3.29918282,602.54,600.82,1.48431585]
[1741011613217,3.29918282,602.54,600.47,2.49160946]
[1741011613218,3.29918282,602.54,601.04,1.48431585]
[1741011613723,3.29918282,602.53,601.04,1.48431585]
[1741011614120,3.29918282,602.52,601.04,1.48431585]
[1741011614620,3.32,602.51,601.04,1.48431585]
[1741011614813,6.61918282,602.51,601.04,1.48431585]
[1741011615318,6.61918282,602.51,596.98,5.31730391]
[1741011615319,6.61918282,602.51,601.1,1.48431585]
[1741011615514,1.26891647,602.5,601.1,1.48431585]
[1741011616021,3.29880014,602.49,601.1,1.48431585]
[1741011616521,3.29880014,602.48,601.1,1.48431585]
[1741011617120,1.26891647,602.47,601.1,1.48431585]
[1741011617421,1.26891647,602.47,601.25,1.48431585]
[1741011617921,1.26891647,602.46,601.25,1.48431585]
[1741011618323,3.32,602.51,601.25,1.48431585]
[1741011618820,1.2687564,602.5,601.25,1.48431585]
[1741011619321,1.2687564,602.5,601.24,1.48431585]
[1741011619721,1.2687564,602.49,601.24,1.48431585]
[1741011620322,1.2687564,602.48,601.24,1.48431585]
[1741011620717,1.238,602.47,601.24,1.48431585]
[1741011621224,1.238,602.47,601.26,1.48431585]
[1741011622932,1.238,602.47,601.22,1.48431585]
[1741011625230,1.238,602.47,601.32,1.48431585]
[1741011626330,1.238,602.47,601.3,1.48431585]
[1741011628126,1.238,602.47,600.49,2.50989664]
[1741011628127,1.238,602.47,601.28,1.48431585]
[1741011630233,1.238,602.47,601.37,1.48431585]
[1741011632134,1.238,602.47,601.23,1.48431585]
[1741011633534,1.238,602.47,601.16,1.48431585]
[1741011635137,1.238,602.47,601.24,1.48431585]
[1741011635837,1.26850662,602.46,601.24,1.48431585]
[1741011636444,3.29789969,602.45,601.24,1.48431585]
[1741011636840,3.29789969,602.45,601.1,2.52629103]
[1741011636841,3.29789969,602.45,601.34,1.48431585]
[1741011637243,1.26850662,602.44,601.34,1.48431585]
[1741011637943,3.29749494,602.43,601.34,1.48431585]
[1741011638545,3.29749494,602.42,601.34,1.48431585]
[1741011638748,3.29749494,602.42,601.47,1.48431585]
[1741011639343,1.26850662,602.41,601.47,1.48431585]
[1741011640248,1.779,602.51,601.47,1.48431585]
[1741011640548,1.73388804,602.53,601.47,1.48431585]
[1741011640745,1.26926879,602.52,601.49,0.3325076]
[1741011640943,3.00319283,602.52,601.61,1.48431585]
[1741011641150,3.00319283,602.52,601.62,0.33243575]
[1741011641847,1.26926879,602.51,601.62,0.33243575]
[1741011642550,1.26926879,602.5,601.62,0.33243575]
[1741011643350,1.26926879,602.49,601.62,0.33243575]
[1741011643549,2.88726879,602.49,601.62,0.33243575]
[1741011643951,1.73396724,602.48,601.62,0.33243575]
[1741011644348,3.30102845,602.47,601.62,0.33243575]
[1741011645146,1.26926879,602.46,601.62,0.33243575]
[1741011645848,1.618,602.49,601.62,0.33243575]
[1741011648456,1.27221107,602.48,601.62,0.33243575]
[1741011649155,2.63321107,602.47,601.62,0.33243575]
[1741011649754,1.27221107,602.46,601.62,0.33243575]
[1741011650451,1.361,602.47,601.62,0.33243575]
[1741011662760,1.361,602.47,601.18,1.48431585]
[1741011663563,1.361,602.47,601.21,1.48431585]
[1741011664164,1.618,602.49,601.21,1.48431585]
[1741011665157,1.618,602.49,601.56,1.48431585]
[1741011667066,1.684,602.48,601.56,1.48431585]
[1741011667570,1.258,602.47,601.69,1.48431585]
[1741011668172,1.636,602.46,601.69,1.48431585]
[1741011669574,1.636,602.46,601.97,1.48431585]
[1741011671772,1.636,602.46,601.6,1.48431585]
[1741011673971,1.636,602.46,601.67,1.48431585]
[1741011675676,1.305,602.45,601.88,1.48431585]
[1741011677272,1.305,602.45,601.73,1.48431585]
[1741011679072,1.305,602.45,601.64,2.52629103]
[1741011679073,1.305,602.45,601.64,1.48431585]
[1741011680775,1.305,602.45,601.73,1.48431585]
[1741011682378,1.305,602.45,601.58,1.48431585]
[1741011683983,1.305,602.45,601.55,1.48431585]
[1741011686183,1.305,602.45,601.58,1.48431585]
[1741011688276,1.305,602.45,601.41,1.48431585]
[1741011690581,1.305,602.45,601.42,1.48431585]
[1741011692087,1.305,602.45,601.47,1.48431585]
[1741011693186,1.305,602.45,601.61,1.48431585]
[1741011695199,3.064,602.45,601.71,1.48431585]
[1741011696498,3.064,602.45,601.66,1.48431585]
[1741011698300,3.064,602.45,601.56,1.48431585]
[1741011698694,4.675,602.45,601.56,1.48431585]
[1741011699498,4.675,602.45,601.52,1.48431585]
[1741011700997,4.675,602.45,601.61,1.48431585]
[1741011702501,4.675,602.45,601.51,1.48431585]
[1741011704004,4.675,602.45,601.44,1.48431585]
[1741011707197,4.675,602.45,601.48,1.48431585]
[1741011708300,6.626,602.45,601.48,1.48431585]
[1741011708699,6.626,602.45,601.45,1.48431585]
[1741011710904,6.626,602.45,601.1,1.48431585]
[1741011712906,6.626,602.45,601.19,1.48431585]
[1741011714406,6.626,602.45,601.31,1.48431585]
[1741011716609,6.626,602.45,601.33,1.48431585]
[1741011717713,6.626,602.45,601.35,1.48431585]
[1741011720516,6.626,602.45,601.34,1.48431585]
[1741011722718,6.626,602.45,601.54,1.48431585]
[1741011723018,6.626,602.45,601.56,0.33246891]
[1741011724716,6.626,602.45,601.67,1.48431585]
[1741011724915,6.626,602.45,601.68,0.3324026]
[1741011726319,6.626,602.45,601.7,1.48431585]
[1741011726520,6.626,602.45,601.71,0.33238603]
[1741011728824,6.626,602.45,601.73,1.48431585]
[1741011729123,6.626,602.45,601.74,0.33236946]
[1741011749830,1.27413396,602.44,601.74,0.33236946]
[1741011750432,1.27413396,602.43,601.74,0.33236946]
[1741011751235,0.66379599,602.66,601.74,0.33236946]
[1741011751739,3.31475087,602.65,601.74,0.33236946]
[1741011752439,3.31475087,602.64,601.74,0.33236946]
[1741011753038,3.97847168,602.63,601.74,0.33236946]
[1741011753239,5.42847168,602.63,601.74,0.33236946]
[1741011753637,3.97847168,602.62,601.74,0.33236946]
[1741011754034,3.97847168,602.62,601.74,1.81668531]
[1741011754439,3.97847168,602.61,601.74,1.81668531]
[1741011755035,5.63802343,602.6,601.74,1.81668531]
[1741011755340,4.31522768,602.59,601.74,1.81668531]
[1741011755533,4.31522768,602.58,601.74,0.33236946]
[1741011755733,1.63189938,602.54,601.74,0.33236946]
[1741011755937,1.65955175,602.53,601.74,0.33236946]
[1741011756137,1.65955175,602.52,601.74,0.33236946]
[1741011756339,1.65955175,602.51,601.74,0.33236946]
[1741011756539,1.65955175,602.5,601.74,0.33236946]
[1741011756737,3.97847168,602.51,601.74,0.33236946]
[1741011756738,1.65955175,602.49,601.74,0.33236946]
[1741011756940,4.31544038,602.48,601.74,0.33236946]
[1741011757137,1.65955175,602.47,601.74,0.33236946]
[1741011757343,1.65955175,602.46,601.74,0.33236946]
[1741011757542,1.65992132,602.45,601.74,0.33236946]
[1741011757742,1.65993273,602.44,601.74,0.33236946]
[1741011758044,5.28547168,602.44,601.74,0.33236946]
[1741011758648,3.97847168,602.43,601.74,0.33236946]
[1741011759049,3.97847168,602.42,601.74,0.33236946]
[1741011759449,1.408,602.41,601.74,0.33236946]
[1741011759647,4.72275087,602.41,601.74,0.33236946]
[1741011760152,1.27490418,602.4,601.74,0.33236946]
[1741011761144,1.27490418,602.39,601.74,0.33236946]
[1741011761745,1.27490418,602.38,601.74,0.33236946]
[1741011762350,1.408,602.41,601.74,0.33236946]
[1741011766256,1.27474163,602.4,601.74,0.33236946]
[1741011766948,1.27474163,602.39,601.74,0.33236946]
[1741011767656,1.27474163,602.38,601.74,0.33236946]
[1741011768253,1.27474163,602.37,601.74,0.33236946]
[1741011768954,1.27474163,602.36,601.74,0.33236946]
[1741011769657,1.27474163,602.35,601.74,0.33236946]
[1741011770852,1.27474163,602.34,601.74,0.33236946]
[1741011771850,1.408,602.41,601.74,0.33236946]
[1741011772651,1.906,602.4,601.74,0.33236946]
[1741011772859,5.21881829,602.4,601.74,0.33236946]
[1741011773856,3.31281829,602.39,601.74,0.33236946]
[1741011774756,3.31281829,602.38,601.74,0.33236946]
[1741011775358,3.31281829,602.37,601.74,0.33236946]
[1741011775959,3.31281829,602.36,601.74,0.33236946]
[1741011776554,1.906,602.4,601.74,0.33236946]
[1741011776555,1.27416088,602.35,601.74,0.33236946]
[1741011777558,1.27416088,602.34,601.74,0.33236946]
[1741011778251,1.906,602.4,601.74,0.33236946]
[1741011778252,1.27416088,602.33,601.74,0.33236946]
[1741011779058,1.906,602.4,601.74,0.33236946]
[1741011779559,1.27396701,602.39,601.74,0.33236946]
[1741011780157,1.27396701,602.38,601.74,0.33236946]
[1741011780760,1.27396701,602.37,601.74,0.33236946]
[1741011781359,1.27396701,602.36,601.74,0.33236946]
[1741011781960,1.27396701,602.35,601.74,0.33236946]
[1741011782762,1.27396701,602.34,601.74,0.33236946]
[1741011783261,3.31184267,602.33,601.74,0.33236946]
[1741011783863,3.31184267,602.32,601.74,0.33236946]
[1741011784264,3.31184267,602.31,601.74,0.33236946]
[1741011784460,1.6603961,602.3,601.74,0.33236946]
[1741011784659,1.6603961,602.29,601.74,0.33236946]
[1741011784860,1.6603961,602.28,601.74,0.33236946]
[1741011785060,1.6603961,602.27,601.74,0.33236946]
[1741011785258,1.6603961,602.26,601.74,0.33236946]